bitfinex/quotes_SOLUSD_20250228
["timestamp","ask_amount","ask_price","bid_price","bid_amount"]
[1740719802985,101.59181043,127.27,127.18,0.2]
[1740719803187,18.79181043,127.25,127.18,0.2]
[1740719805203,26.65031043,127.25,127.18,0.2]
[1740719806088,47.72590767,127.25,127.18,0.2]
[1740719806290,0.14216157,127.23,127.18,0.2]
[1740719806483,18.79181043,127.21,127.18,0.2]
[1740719806904,18.79181043,127.21,127.09,0.03]
[1740719807095,18.79181043,127.19,127.09,0.03]
[1740719808096,0.14216157,127.2,127.09,0.03]
[1740719808299,149.9405,127.22,127.09,0.03]
[1740719808602,0.14216157,127.21,127.09,0.03]
[1740719808814,20.22110767,127.21,127.09,0.03]
[1740719808987,7.8616,127.2,127.09,0.03]
[1740719809305,20.22110767,127.21,127.09,0.03]
[1740719809502,28.08220767,127.21,127.09,0.03]
[1740719809707,20.22110767,127.21,127.09,0.03]
[1740719809902,18.79181043,127.21,127.09,0.03]
[1740719810106,18.64964886,127.21,127.09,0.03]
[1740719810419,18.79181043,127.19,127.09,0.03]
[1740719810997,0.14216157,127.17,127.09,0.03]
[1740719811308,0.14216157,127.15,127.09,0.03]
[1740719811505,9.62,127.14,127.09,0.03]
[1740719812713,9.62,127.13,127.09,0.03]
[1740719812909,9.62,127.14,127.09,0.03]
[1740719813208,9.62,127.14,127.09,20.03]
[1740719813991,9.62,127.14,127.09,19.99687555]
[1740719815810,5.4084,127.14,127.08,0.14216157]
[1740719816005,9.62,127.18,127.08,6.40436157]
[1740719816205,132.48,127.22,127.15,20.0]
[1740719816597,82.8,127.21,127.15,20.0]
[1740719816797,18.79181043,127.19,127.03,6.2921]
[1740719817101,18.79181043,127.19,127.03,144.44419446]
[1740719817102,9.62,127.18,127.03,144.44419446]
[1740719817412,9.62,127.18,127.07,20.0]
[1740719818013,18.79181043,127.17,127.03,87.8921]
[1740719818192,18.79181043,127.17,127.03,6.2921]
[1740719818397,18.79181043,127.17,127.06,20.0]
[1740719818916,9.62,127.18,127.07,20.0]
[1740719819100,9.62,127.18,127.08,20.0]
[1740719819299,18.79181043,127.17,127.08,20.0]
[1740719820015,9.62,127.18,127.08,20.0]
[1740719820799,9.62,127.18,127.04,9.62]
[1740719821098,9.62,127.18,127.08,20.03]
[1740719821506,82.8,127.19,127.12,20.0]
[1740719821707,0.063,127.2,127.12,20.0]
[1740719823022,90.7246,127.2,127.03,224.3921]
[1740719823222,18.79181043,127.16,127.03,6.2921]
[1740719823399,92.64,127.15,127.03,6.2921]
[1740719823605,82.8,127.14,127.06,20.0]
[1740719823802,82.8,127.13,127.06,20.0]
[1740719824025,82.8,127.13,127.03,6.2921]
[1740719824211,82.8,127.12,127.03,6.2921]
[1740719824412,82.8,127.11,127.03,6.2921]
[1740719824603,82.8,127.11,127.06,20.0]
[1740719824803,82.8,127.14,127.06,20.0]
[1740719825005,9.84,127.15,127.09,20.0]
[1740719825205,92.66,127.19,127.09,101.6]
[1740719825429,92.66,127.19,127.12,20.0]
[1740719825717,82.8,127.18,127.12,20.0]
[1740719825905,9.86,127.19,127.12,101.6]
[1740719826108,0.063,127.2,127.16,20.0]
[1740719827014,0.063,127.2,127.19,20.0]
[1740719827413,0.063,127.2,127.12,6.5676]
[1740719827618,0.063,127.2,127.13,0.14216157]
[1740719827806,0.063,127.2,127.16,20.0]
[1740719829519,0.063,127.2,127.19,38.79181043]
[1740719829705,0.063,127.2,127.19,101.6]
[1740719830119,0.063,127.2,127.12,224.6676]
[1740719830307,0.063,127.2,127.16,0.14216157]
[1740719830506,0.063,127.2,127.19,20.0]
[1740719831030,90.8455,127.19,126.99,0.03]
[1740719831327,0.14216157,127.16,126.99,0.03]
[1740719831527,0.14216157,127.11,126.99,0.03]
[1740719831716,11.9905795,127.1,126.99,0.03]
[1740719832321,11.9905795,127.1,127.0,18.64964886]
[1740719832322,10.34,127.1,127.0,18.64964886]
[1740719832522,10.34,127.12,127.02,18.64964886]
[1740719832711,1.6505795,127.15,127.04,18.64964886]
[1740719832905,1.6505795,127.15,127.02,105.92238993]
[1740719832906,1.6505795,127.14,127.02,6.5599]
[1740719833623,18.79181043,127.13,126.99,0.03]
[1740719833928,84.4505795,127.12,126.99,20.03]
[1740719834105,84.4505795,127.12,127.03,20.0]
[1740719834427,84.4505795,127.12,126.99,0.03]
[1740719834629,84.4505795,127.12,127.05,20.0]
[1740719834833,1.6505795,127.12,127.05,20.0]
[1740719835025,1.6505795,127.15,127.05,20.0]
[1740719836015,1.6505795,127.15,127.09,20.0]
[1740719836211,10.34,127.16,127.09,20.0]
[1740719836730,84.4505795,127.15,127.01,0.14216157]
[1740719836926,82.8,127.14,127.01,170.66716758]
[1740719837127,1.6505795,127.13,127.05,20.0]
[1740719837307,82.8,127.14,127.06,20.0]
[1740719837713,1.6505795,127.13,127.06,20.0]
[1740719837915,82.8,127.12,127.0,179.21274107]
[1740719838129,84.4505795,127.15,127.07,20.0]
[1740719838429,11.9905795,127.16,127.08,20.0]
[1740719839035,132.58,127.18,127.09,20.14216157]
[1740719839333,10.28,127.17,127.11,20.0]
[1740719839843,0.063,127.2,127.12,20.14216157]
[1740719840008,0.063,127.2,127.16,20.0]
[1740719840407,0.063,127.2,127.17,18.79181043]
[1740719840612,0.063,127.2,127.19,20.0]
[1740719840812,0.063,127.2,127.19,38.79181043]
[1740719841020,0.063,127.2,127.19,256.89181043]
[1740719841234,0.063,127.33,127.24,0.14216157]
[1740719841431,0.063,127.33,127.27,20.0]
[1740719842233,0.063,127.33,127.31,20.0]
[1740719842728,0.063,127.33,127.27,136.5]
[1740719842921,0.063,127.33,127.28,20.0]
[1740719843542,0.063,127.33,127.32,20.0]
[1740719844224,0.063,127.33,127.32,38.79181043]
[1740719844436,17.45705823,127.43,127.36,20.0]
[1740719844748,17.45705823,127.43,127.36,156.5]
[1740719844923,1.6505795,127.42,127.36,156.5]
[1740719845132,17.45705823,127.43,127.36,156.5]
[1740719845484,1.6505795,127.42,127.34,20.0]
[1740719845733,93.12,127.41,127.34,20.0]
[1740719845912,84.4505795,127.4,127.26,139.65165806]
[1740719846119,1.6505795,127.4,127.27,18.79181043]
[1740719846320,1.6505795,127.4,127.32,20.0]
[1740719846644,1.6505795,127.42,127.32,20.0]
[1740719846849,1.6505795,127.42,127.33,20.0]
[1740719847443,11.9705795,127.43,127.35,0.14216157]
[1740719847738,1.6505795,127.46,127.38,20.0]
[1740719847933,0.063,127.42,127.38,20.0]
[1740719850138,0.063,127.42,127.41,20.0]
[1740719850518,0.063,127.42,127.38,218.1]
[1740719850715,0.063,127.42,127.34,0.14216157]
[1740719850930,0.063,127.42,127.38,20.0]
[1740719851630,0.063,127.42,127.35,218.1]
[1740719851834,0.063,127.42,127.33,10.36]
[1740719852129,0.063,127.42,127.36,20.0]
[1740719852343,82.863,127.42,127.36,20.0]
[1740719852545,1.6505795,127.41,127.28,218.1]
[1740719852745,1.6505795,127.41,127.31,18.64964886]
[1740719852972,1.6505795,127.41,127.34,20.0]
[1740719853236,1.6505795,127.41,127.38,20.0]
[1740719853436,0.063,127.42,127.38,20.0]
[1740719853628,1.7135795,127.42,127.38,20.0]
[1740719853824,0.063,127.42,127.37,20.0]
[1740719854029,0.063,127.42,127.38,20.0]
[1740719854731,0.063,127.42,127.39,20.14216157]
[1740719855124,0.063,127.42,127.39,101.74216157]
[1740719855637,0.063,127.42,127.39,101.6]
[1740719855828,0.063,127.42,127.24,18.86871923]
[1740719855829,0.063,127.42,127.31,350.48]
[1740719856030,0.063,127.42,127.33,0.14216157]
[1740719856334,0.063,127.42,127.33,218.1]
[1740719856538,0.063,127.42,127.37,20.0]
[1740719857323,0.063,127.42,127.38,18.79181043]
[1740719857544,0.063,127.42,127.41,20.0]
[1740719859225,0.063,127.42,127.41,101.74216157]
[1740719859558,0.063,127.42,127.41,256.89181043]
[1740719859832,0.063,127.42,127.41,38.79181043]
[1740719860037,0.063,127.42,127.41,40.43899704]
[1740719860750,0.063,127.42,127.41,38.79181043]
[1740719861240,0.063,127.42,127.41,20.0]
[1740719861944,0.063,127.42,127.41,38.79181043]
[1740719862532,0.063,127.42,127.41,256.89181043]
[1740719863531,0.063,127.47,127.46,0.14216157]
[1740719863837,0.063,127.47,127.46,81.6]
[1740719866830,0.063,127.47,127.46,238.53861239]
[1740719867035,0.063,127.55,127.49,20.0]
[1740719867234,0.063,127.55,127.52,20.0]
[1740719867962,0.063,127.55,127.53,20.0]
[1740719870259,0.063,127.55,127.52,20.0]
[1740719870947,0.063,127.55,127.44,146.74]
[1740719871135,0.063,127.55,127.44,136.5]
[1740719871341,0.063,127.55,127.45,18.79181043]
[1740719871547,0.063,127.55,127.48,20.0]
[1740719871941,1.7135795,127.55,127.48,20.0]
[1740719872953,11.9335795,127.55,127.48,20.0]
[1740719873159,11.9335795,127.55,127.47,20.0]
[1740719874862,10.283,127.55,127.47,20.0]
[1740719875157,10.283,127.55,127.46,38.79181043]
[1740719875361,0.063,127.55,127.46,256.89181043]
[1740719875538,1.6505795,127.54,127.46,256.74964886]
[1740719875737,84.4505795,127.54,127.46,20.0]
[1740719876050,84.4505795,127.54,127.38,144.2711]
[1740719876051,1.6607,127.52,127.38,144.2711]
[1740719876239,1.6505795,127.51,127.38,234.4476]
[1740719876445,18.64964886,127.5,127.34,136.5]
[1740719876762,18.79181043,127.48,127.35,10.22]
[1740719876941,1.6505795,127.47,127.39,20.0]
[1740719877136,10.22,127.46,127.39,20.0]
[1740719877548,11.8705795,127.5,127.38,20.0]
[1740719877748,11.8705795,127.5,127.39,1.64759798]
[1740719877949,11.8705795,127.5,127.43,20.0]
[1740719878859,10.22,127.5,127.43,20.0]
[1740719879062,10.22,127.5,127.47,20.0]
[1740719879361,1.6505795,127.49,127.47,20.0]
[1740719879657,82.8,127.48,127.36,218.1]
[1740719879865,1.6505795,127.47,127.34,10.22]
[1740719880249,1.6505795,127.52,127.45,20.0]
[1740719880477,0.063,127.55,127.49,20.0]
[1740719880659,0.063,127.55,127.53,20.0]
[1740719880973,0.063,127.55,127.52,10.3]
[1740719881270,0.063,127.55,127.54,20.0]
[1740719881444,0.063,127.55,127.46,5.66499072]
[1740719881652,1.7135795,127.55,127.42,10.54]
[1740719881974,82.8,127.54,127.46,20.0]
[1740719882185,0.063,127.55,127.54,20.0]
[1740719883072,0.063,127.55,127.5,10.66]
[1740719883264,0.063,127.55,127.47,81.6]
[1740719883442,0.063,127.55,127.5,20.0]
[1740719883647,0.063,127.55,127.51,20.0]
[1740719884086,1.535,127.54,127.43,132.26]
[1740719884384,18.79181043,127.52,127.37,10.68]
[1740719884552,90.6771795,127.53,127.37,230.42766169]
[1740719884553,84.4505795,127.51,127.37,230.42766169]
[1740719884759,82.8,127.51,127.45,20.0]
[1740719884959,82.8,127.52,127.45,20.0]
[1740719885465,1.6505795,127.51,127.45,20.0]
[1740719885654,82.8,127.52,127.45,20.0]
[1740719885860,0.063,127.55,127.49,20.0]
[1740719886163,0.063,127.55,127.5,20.0]
[1740719886747,82.8,127.54,127.47,0.03]
[1740719886953,1.6505795,127.53,127.47,0.03]
[1740719887159,1.6505795,127.53,127.47,20.03]
[1740719887377,12.3505795,127.53,127.47,0.03]
[1740719887666,1.6277,127.51,127.47,0.03]
[1740719887873,84.4505795,127.5,127.47,0.03]
[1740719888063,82.8,127.49,127.47,0.03]
[1740719888268,1.6505795,127.48,127.47,0.03]
[1740719889178,25.22551043,127.48,127.36,213.84]
[1740719889477,1.6505795,127.47,127.39,20.0]
[1740719891260,9.4956795,127.47,127.36,213.84]
[1740719891478,18.79181043,127.46,127.34,81.6]
[1740719891675,1.6505795,127.45,127.34,81.6]
[1740719891880,1.6505795,127.45,127.37,20.0]
[1740719892190,20.35221043,127.42,127.33,0.03]
[1740719892493,12.2505795,127.41,127.33,0.03]
[1740719892860,12.2505795,127.41,127.33,20.03]
[1740719893185,82.8,127.4,127.33,0.03]
[1740719893391,1.6505795,127.39,127.33,0.03]
[1740719893558,82.8,127.38,127.33,0.03]
[1740719893759,1.6505795,127.37,127.33,0.03]
[1740719894785,82.8,127.36,127.33,0.03]
[1740719894986,95.0305795,127.35,127.26,0.03]
[1740719895508,1.6535,127.33,127.26,0.03]
[1740719895693,3.3040795,127.33,127.26,0.03]
[1740719895996,10.58,127.35,127.29,20.0]
[1740719896200,82.8,127.36,127.29,20.0]
[1740719896388,1.6505795,127.35,127.29,20.0]
[1740719896592,1.6505795,127.35,127.26,0.03]
[1740719896764,0.14216157,127.33,127.26,0.03]
[1740719896969,12.2305795,127.32,127.26,0.03]
[1740719897295,6.5285,127.3,127.26,0.03]
[1740719897497,1.6505795,127.29,127.26,0.03]
[1740719897673,84.4505795,127.29,127.26,0.03]
[1740719898392,82.8,127.29,127.26,0.03]
[1740719898568,1.6505795,127.28,127.26,0.03]
[1740719898767,82.8,127.27,127.2,0.03]
[1740719898992,1.6505795,127.28,127.2,0.03]
[1740719899170,9.7201795,127.3,127.23,20.0]
[1740719900071,82.8,127.31,127.27,20.0]
[1740719900271,10.58,127.33,127.27,20.0]
[1740719900485,82.8,127.34,127.27,20.0]
[1740719900678,84.4505795,127.34,127.27,20.0]
[1740719901175,82.8,127.34,127.27,20.0]
[1740719901376,82.8,127.36,127.31,20.0]
[1740719902298,82.8,127.36,127.27,81.6]
[1740719902478,84.4505795,127.35,127.27,81.6]
[1740719902869,84.4505795,127.35,127.3,20.0]
[1740719903683,82.8,127.35,127.3,20.0]
[1740719904183,82.8,127.35,127.32,20.0]
[1740719904883,1.6505795,127.39,127.32,20.0]
[1740719905491,1.6505795,127.41,127.32,20.0]
[1740719905692,1.6505795,127.39,127.32,20.0]
[1740719905892,1.6505795,127.42,127.36,20.0]
[1740719906094,12.1305795,127.45,127.36,20.0]
[1740719906300,10.48,127.45,127.4,20.0]
[1740719906594,1.6379,127.48,127.4,20.0]
[1740719906773,1.6505795,127.47,127.4,20.0]
[1740719907286,1.6505795,127.48,127.4,20.0]
[1740719907489,1.7135795,127.49,127.4,20.0]
[1740719908484,1.7135795,127.49,127.44,20.0]
[1740719908888,0.14216157,127.48,127.33,146.96]
[1740719909089,1.6505795,127.47,127.33,146.96]
[1740719909290,18.79181043,127.46,127.33,10.46]
[1740719909602,12.1305795,127.45,127.33,10.46]
[1740719910388,12.1305795,127.45,127.34,18.64964886]
[1740719911189,19.9767795,127.45,127.37,20.0]
[1740719911883,19.9770795,127.45,127.36,20.0]
[1740719912805,12.1305795,127.45,127.36,20.0]
[1740719913303,19.9769795,127.45,127.36,20.0]
[1740719913902,12.1305795,127.45,127.36,20.0]
[1740719914399,12.1305795,127.45,127.37,18.79181043]
[1740719914702,84.5135795,127.46,127.37,18.79181043]
[1740719915004,84.5135795,127.46,127.4,20.0]
[1740719915204,0.063,127.46,127.4,20.0]
[1740719915580,0.063,127.46,127.41,18.79181043]
[1740719915807,0.063,127.46,127.44,20.0]
[1740719916503,0.063,127.46,127.45,18.79181043]
[1740719916707,0.063,127.46,127.45,100.39181043]
[1740719917009,0.063,127.46,127.45,236.89181043]
[1740719918489,0.063,127.55,127.52,20.0]
[1740719918995,82.8,127.54,127.45,91.88]
[1740719919196,82.8,127.53,127.45,91.88]
[1740719919396,82.8,127.53,127.48,20.0]
[1740719919789,1.6505795,127.52,127.48,20.0]
[1740719921097,82.8,127.53,127.48,20.0]
[1740719921285,1.6505795,127.52,127.48,20.0]
[1740719921703,82.8,127.51,127.44,20.0]
[1740719921903,94.6905795,127.5,127.41,81.6]
[1740719922098,82.8,127.49,127.39,224.4517]
[1740719922317,84.4505795,127.48,127.42,20.0]
[1740719922496,82.8,127.47,127.37,218.1]
[1740719922810,84.4505795,127.46,127.35,87.926]
[1740719923016,84.4505795,127.46,127.39,20.0]
[1740719923594,101.59181043,127.45,127.31,229.8842]
[1740719923793,11.8705795,127.44,127.31,93.3842]
[1740719923994,18.0557146,127.44,127.35,20.0]
[1740719924313,82.8,127.43,127.32,100.39181043]
[1740719924514,84.4505795,127.42,127.35,20.0]
[1740719924705,82.8,127.41,127.35,20.0]
[1740719924910,82.8,127.43,127.35,101.6]
[1740719925108,82.8,127.43,127.39,20.0]
[1740719926321,82.8,127.43,127.38,20.0]
[1740719926624,1.6505795,127.42,127.31,136.5]
[1740719926921,1.6505795,127.42,127.34,20.0]
[1740719927110,1.6505795,127.42,127.33,20.0]
[1740719927308,1.6505795,127.42,127.3,6.326]
[1740719927497,82.8,127.41,127.32,20.0]
[1740719927699,11.7905795,127.4,127.29,18.64964886]
[1740719928007,11.7905795,127.4,127.32,20.0]
[1740719928216,11.7905795,127.4,127.29,18.64964886]
[1740719928702,1.6505795,127.4,127.36,20.0]
[1740719928904,11.6369,127.42,127.36,20.0]
[1740719929104,10.12,127.42,127.36,20.0]
[1740719929611,1.6505795,127.41,127.32,10.14]
[1740719929819,1.6505795,127.41,127.33,20.0]
[1740719930116,1.6505795,127.41,127.32,0.14216157]
[1740719930418,1.6505795,127.41,127.34,20.0]
[1740719931104,84.4505795,127.41,127.34,20.0]
[1740719931491,1.6505795,127.41,127.34,20.0]
[1740719931692,1.6505795,127.44,127.37,20.0]
[1740719931997,1.5169,127.48,127.41,0.14216157]
[1740719932198,1.6505795,127.51,127.42,20.0]
[1740719932604,1.6505795,127.51,127.43,20.0]
[1740719933205,18.79181043,127.5,127.38,0.14216157]
[1740719933402,18.79181043,127.48,127.36,0.14216157]
[1740719933599,1.6505795,127.47,127.33,146.6]
[1740719933804,10.1,127.46,127.36,0.14216157]
[1740719934005,1.6505795,127.45,127.36,0.14216157]
[1740719934206,1.6505795,127.45,127.35,18.64964886]
[1740719934402,1.6505795,127.45,127.38,20.0]
[1740719934916,1.6505795,127.45,127.35,18.64964886]
[1740719935421,1.6505795,127.45,127.38,20.0]
[1740719937797,1.6505795,127.45,127.37,20.0]
[1740719938110,1.6505795,127.45,127.39,20.0]
[1740719938815,82.8,127.44,127.39,20.0]
[1740719939029,1.6505795,127.43,127.39,20.0]
[1740719939205,82.8,127.42,127.32,18.64964886]
[1740719939407,1.6505795,127.41,127.35,20.0]
[1740719939719,82.8,127.4,127.35,20.0]
[1740719940299,82.8,127.43,127.39,20.0]
[1740719940505,1.5001,127.44,127.39,20.0]
[1740719940822,3.1506795,127.44,127.39,20.0]
[1740719941208,1.5001,127.44,127.39,20.0]
[1740719941417,82.8,127.46,127.43,20.0]
[1740719941719,0.03,127.49,127.43,20.0]
[1740719942107,0.03,127.49,127.47,20.0]
[1740719942721,0.03,127.49,127.48,0.14216157]
[1740719943019,0.03,127.52,127.49,18.79181043]
[1740719943218,0.03,127.52,127.51,20.0]
[1740719943913,0.03,127.52,127.51,120.39181043]
[1740719944120,0.03,127.52,127.51,258.53783781]
[1740719944319,0.03,127.52,127.51,256.89181043]
[1740719944730,0.03,127.52,127.51,120.39181043]
[1740719944922,0.03,127.52,127.51,122.03762281]
[1740719945225,0.063,127.58,127.54,20.0]
[1740719945421,0.063,127.58,127.54,258.53737479]
[1740719945602,0.063,127.58,127.54,256.89181043]
[1740719947022,0.063,127.58,127.57,38.79181043]
[1740719947232,0.063,127.6,127.58,18.79181043]
[1740719947406,0.063,127.6,127.59,30.41639481]
[1740719947724,0.063,127.68,127.61,24.94621043]
[1740719947919,82.8,127.76,127.65,20.14216157]
[1740719948123,82.8,127.76,127.68,0.14216157]
[1740719948428,82.8,127.78,127.73,20.0]
[1740719948923,1.7135795,127.77,127.73,20.0]
[1740719949137,0.063,127.77,127.73,20.0]
[1740719949509,0.063,127.77,127.76,20.0]
[1740719949911,0.063,127.77,127.76,38.79181043]
[1740719950311,0.063,127.77,127.76,40.43467603]
[1740719951035,0.063,127.84,127.81,0.14216157]
[1740719951229,0.063,127.84,127.83,0.14216157]
[1740719951722,0.063,127.84,127.83,18.79181043]
[1740719952235,0.063,127.84,127.79,1.64189905]
[1740719952418,0.063,127.84,127.78,9.94]
[1740719952823,0.063,127.84,127.82,20.0]
[1740719953421,0.063,127.84,127.83,18.64964886]
[1740719953729,0.063,127.9,127.86,20.0]
[1740719955523,1.6505795,127.9,127.78,142.0]
[1740719955727,80.86366513,127.89,127.79,1.64244861]
[1740719956128,80.86366513,127.89,127.8,0.14216157]
[1740719956631,80.86366513,127.89,127.78,223.6]
[1740719956632,1.6505795,127.88,127.81,20.0]
[1740719956825,82.51424463,127.88,127.78,91.54]
[1740719957018,82.51424463,127.92,127.79,20.43432101]
[1740719957218,82.51424463,127.92,127.86,20.0]
[1740719957431,80.86366513,127.92,127.86,20.0]
[1740719957625,11.5505795,127.93,127.86,20.0]
[1740719957941,9.9,127.93,127.9,20.0]
[1740719958134,0.063,127.95,127.9,20.0]
[1740719958436,0.063,127.95,127.94,20.0]
[1740719958933,0.063,127.95,127.94,38.64964886]
[1740719959436,0.063,127.95,127.91,0.14216157]
[1740719959636,0.063,127.95,127.91,18.64964886]
[1740719959837,0.063,127.95,127.86,9.88]
[1740719960135,0.063,127.95,127.93,20.0]
[1740719960342,0.063,127.95,127.9,0.14216157]
[1740719961046,0.063,127.95,127.89,20.0]
[1740719961343,0.063,127.95,127.86,9.88]
[1740719961642,1.7135795,127.95,127.87,18.79181043]
[1740719961843,0.03,127.94,127.87,18.64964886]
[1740719962423,0.03,127.94,127.89,20.0]
[1740719963151,0.17216157,127.94,127.9,20.0]
[1740719963336,1.6505795,127.93,127.9,20.0]
[1740719963527,1.6505795,127.93,127.83,18.64964886]
[1740719963727,0.03,127.94,127.85,18.64964886]
[1740719963934,0.03,127.94,127.9,20.0]
[1740719964143,1.6805795,127.94,127.9,20.0]
[1740719964444,0.03,127.94,127.9,20.0]
[1740719964632,0.03,127.94,127.84,0.14216157]
[1740719964825,80.86366513,127.93,127.84,1.78417608]
[1740719965026,80.86366513,127.93,127.9,20.0]
[1740719965223,0.03,127.94,127.9,20.0]
[1740719966526,0.03,127.94,127.93,38.64964886]
[1740719966733,0.03,127.94,127.93,38.79181043]
[1740719968742,0.03,127.94,127.89,1.64085329]
[1740719968929,0.03,127.94,127.91,0.14216157]
[1740719969137,0.03,127.94,127.91,20.14216157]
[1740719969346,0.03,127.94,127.93,0.14216157]
[1740719970430,0.063,127.95,127.94,20.0]
[1740719970636,0.063,127.95,127.94,31.66230847]
[1740719971229,0.063,127.95,127.94,30.02216157]
[1740719971448,0.063,127.95,127.94,20.0]
[1740719971642,0.063,127.95,127.94,20.14216157]
[1740719972043,0.063,127.95,127.94,38.79181043]
[1740719972345,0.063,127.95,127.94,18.64964886]
[1740719972852,0.063,127.95,127.9,9.88]
[1740719973151,0.063,127.95,127.87,218.1]
[1740719973445,0.063,127.95,127.91,38.64964886]
[1740719973852,0.03,127.94,127.9,20.063]
[1740719974233,0.03,127.94,127.9,0.063]
[1740719974949,80.89366513,127.94,127.9,0.063]
[1740719975164,1.6505795,127.93,127.9,0.063]
[1740719975335,9.87,127.94,127.9,0.063]
[1740719976542,1.6505795,127.93,127.9,0.063]
[1740719977252,9.87,127.94,127.9,0.063]
[1740719978356,9.87,127.94,127.93,20.0]
[1740719978564,0.03,127.94,127.93,20.0]
[1740719979049,0.03,127.94,127.9,0.20516157]
[1740719979255,0.03,127.94,127.9,0.063]
[1740719979459,0.03,127.94,127.9,18.71264886]
[1740719980036,0.03,127.94,127.9,0.063]
[1740719980235,80.89366513,127.94,127.9,0.063]
[1740719981247,82.51424463,127.93,127.9,0.063]
[1740719981431,80.86366513,127.92,127.9,0.063]
[1740719981652,80.86366513,127.91,127.9,0.063]
[1740719982654,11.4405795,127.94,127.9,0.063]
[1740719982655,9.79,127.94,127.9,0.063]
[1740719982856,0.03,127.94,127.9,0.063]
[1740719983153,0.03,127.94,127.93,18.64964886]
[1740719983353,0.03,127.94,127.93,18.79181043]
[1740719986262,0.063,127.95,127.94,0.14216157]
[1740719986556,0.063,127.95,127.94,155.29181043]
[1740719986751,0.063,127.95,127.94,236.89181043]
[1740719987135,0.063,127.95,127.94,155.29181043]
[1740719987458,0.063,127.97,127.96,0.14216157]
[1740719987756,0.063,127.97,127.96,166.63184649]
[1740719988065,0.063,127.97,127.96,164.99181043]
[1740719988460,0.063,127.97,127.96,28.49181043]
[1740719989861,0.063,127.97,127.96,18.64964886]
[1740719991256,0.063,127.97,127.9,136.563]
[1740719991459,0.063,127.97,127.9,0.063]
[1740719991670,0.063,127.97,127.93,38.64964886]
[1740719991960,0.063,127.97,127.9,18.85481043]
[1740719992156,0.063,127.97,127.94,18.64964886]
[1740719992357,0.063,127.97,127.96,20.0]
[1740719995961,0.063,127.97,127.94,0.14216157]
[1740719997249,0.063,127.97,127.91,1.78288953]
[1740719997449,0.063,127.97,127.96,0.14216157]
[1740719997656,0.063,127.97,127.96,18.79181043]
[1740719998558,0.063,127.97,127.95,18.85481043]
[1740720000578,0.063,127.97,127.96,1.78255726]
[1740720000866,0.063,127.97,127.96,0.14216157]
[1740720001246,0.063,127.99,127.98,38.79181043]
[1740720002942,0.063,127.99,127.95,0.063]
[1740720003360,80.86366513,127.98,127.95,0.063]
[1740720003563,80.86366513,127.97,127.95,0.063]
[1740720003764,82.6564062,127.96,127.9,0.063]
[1740720003967,80.86366513,127.95,127.9,0.063]
[1740720004153,1.6505795,127.94,127.9,0.063]
[1740720004356,80.86366513,127.95,127.9,0.063]
[1740720005058,11.2505795,127.97,127.9,0.063]
[1740720005059,1.6505795,127.94,127.9,0.063]